Cogmind - Beta 11 X8 @@@ ROGUE MODE // 2021.11.23 @ 22:18:23 Player: szymekc Result: Destroyed by as-64560 with Assembled F-torch Performance ------------- Evolutions (1) 500 Regions Visited (4) 800 Robots Destroyed (43) 215 Value Destroyed (1022) 1022 Prototype IDs (3) 60 Alien Tech Used (0) 0 Bonus (82) 82 TOTAL SCORE: 2679 Bonus ------- High Alert Combat Kills 82 Cogmind --------- Core Integrity 0/400 Matter 0/300 Energy 99/100 System Corruption 6% Temperature Cool (20) Movement Core (50) Location -9/Mines Parts ------- > --- POWER (1) -------- (None) > --- PROPULSION (3) --- (None) > --- UTILITY (3) ------ Armor Integrity Analyzer System Shield > --- WEAPON (2) ------- (None) > --- INVENTORY (5) ---- Light Ion Engine Airjet Improved Heat Sink Improved Assault Rifle Improved Assault Rifle Peak State ------------ > --- POWER ------------ Deuterium Engine > --- PROPULSION ------- Improved Aluminum Leg Improved Aluminum Leg Improved Aluminum Leg > --- UTILITY ---------- Small Storage Unit Experimental Sensor Array Improved Propulsion Shielding > --- WEAPON ----------- Heavy Assault Cannon > --- INVENTORY -------- Light Treads Improved Heat Sink High-capacity Storage Unit Large Matter Pod Beamcaster Heavy Assault Cannon Great Maul [Rating: 30] Favorites ----------- Power Deuterium Engine Engine Deuterium Engine Propulsion Aluminum Leg Treads Light Treads Leg Aluminum Leg Wheel Wheel Hover Unit Airjet Flight Unit Improved Flight Unit Utility Small Storage Unit Device Experimental Sensor Array Storage Small Storage Unit Processor Armor Integrity Analyzer Hackware System Shield Protection Improved Propulsion Shielding Weapon Heavy Assault Cannon Energy Gun Medium Laser Ballistic Gun Assault Rifle Ballistic Cannon Heavy Assault Cannon Launcher Rocket Launcher Build | -11 -10 -10 -9 -9 ------- Run | Scr Mat Min Mat Min Slots Evolved 2 | . . . 2 . Power . | . . . . . Propulsion 1 | . . . 1 . Utility 1 | . . . 1 . Weapon . | . . . . . Parts Attached 35 | . 3 9 19 4 Power 5 | . 1 2 2 . Engine 5 | . 1 2 2 . Core . | . . . . . Reactor . | . . . . . Propulsion 14 | . . 4 10 . Treads 2 | . . 1 1 . Leg 7 | . . 2 5 . Wheel 1 | . . 1 . . Hover 3 | . . . 3 . Flight 1 | . . . 1 . Utility 7 | . 1 1 5 . Device 2 | . . 1 1 . Storage 1 | . . . 1 . Processor 2 | . 1 . 1 . Hackware 1 | . . . 1 . Protection 1 | . . . 1 . Artifact . | . . . . . Weapon 9 | . 1 2 2 4 Energy Gun 1 | . . 1 . . Energy Cannon . | . . . . . Ballistic Gun 4 | . 1 1 . 2 Ballistic Cannon 2 | . . . 2 . Launcher 2 | . . . . 2 Special Weapon . | . . . . . Impact Weapon . | . . . . . Slashing Weapon . | . . . . . Piercing Weapon . | . . . . . Special Melee Weapon . | . . . . . Unidentified Prototypes 3 | . . 1 1 1 Parts Lost 14 | . . 2 8 4 Power 1 | . . . 1 . Propulsion 7 | . . 1 3 3 Utility 3 | . . . 3 . Weapon 3 | . . 1 1 1 Highest Loss Streak 4 | . . 1 3 4 Average Slot Usage (%) 82 | . 86 100 72 57 Engine 11 | . 14 14 10 6 Treads 4 | . . 4 4 . Leg 18 | . 28 19 18 . Wheel 2 | . . 3 2 . Hover 2 | . . . 3 14 Device 3 | . . 5 3 . Storage 11 | . 14 14 10 5 Processor 5 | . 1 8 4 11 Hackware 1 | . . . . 11 Protection 1 | . . . 3 . Energy Gun 6 | . 14 14 . . Ballistic Gun 6 | . 14 14 . 1 Ballistic Cannon 5 | . . . 10 . Naked Turns . | . . . . . Heaviest Build 29 | 14 14 18 29 24 Greatest Support 39 | 20 20 20 39 24 Greatest Overweight (x) 9 | . . 1 9 2 Average Overweight (x) . | . . . . . Largest Inventory Capacity 8 | 8 8 8 8 8 Average Capacity 7 | 8 8 8 7 6 Most Carried 8 | 6 8 8 8 8 Average Carried 7 | 6 7 7 7 5 Final Capacity 8 | 8 8 8 8 5 Final Carried 8 | 6 8 8 8 5 Class Distribution -------------------- 100% | Mutant Dominant Class ---------------- Mutant | -10/Materials Mutant | -10/Mines Mutant | -9/Materials Mutant | -9/Mines Resources | -11 -10 -10 -9 -9 ----------- Run | Scr Mat Min Mat Min Matter Collected 1209 | 200 45 250 689 25 Remotely . | . . . . . Salvage Created 890 | . 47 258 568 17 Parts 64 | . 6 14 44 . Haulers Intercepted 2 | . . . 2 . Recyclers Shooed . | . . . . . Parts Field Recycled . | . . . . . Retrieved Matter . | . . . . . Parts Self-Destructed . | . . . . . Prevented . | . . . . . Kills | -11 -10 -10 -9 -9 ------- Run | Scr Mat Min Mat Min Combat Hostiles Destroyed 49 | . 3 9 25 12 Guns 12 | . 3 9 . . Cannons 21 | . . . 21 . AOE 15 | . . . 3 12 Classes Destroyed 10 | . 1 1 7 1 Worker 1 | . . . 1 . Builder 1 | . . . 1 . Hauler 2 | . . . 2 . Mechanic 1 | . . . 1 . Watcher 1 | . . . 1 . Swarmer 17 | . 3 5 9 . Grunt 14 | . . 4 10 . Brawler 1 | . . . 1 . Sentry 5 | . . . 5 . Assembled 12 | . . . . 12 Best Kill Streak 7 | . 3 4 7 7 Combat Bots Only 7 | . 3 4 7 7 Max Kills in Single Turn 5 | . 1 1 3 5 Gunslinging . | . . . . . Exploded 5 | . . . 2 5 Melee . | . . . . . Uniques/NPCs Destroyed . | . . . . . Combat | -11 -10 -10 -9 -9 -------- Run | Scr Mat Min Mat Min Damage Taken 2388 | . 103 519 1189 577 Core 508 | . 25 76 150 257 Absorbed by Shields . | . . . . . Core Remaining (%) 79 | 100 . 59 . . Volleys Fired 135 | . 15 28 87 5 Largest 2 | . 2 2 1 2 Hottest 70 | . 70 70 60 66 Shots Fired 180 | . 30 56 87 7 Gun 86 | . 30 56 . . Cannon 87 | . . . 87 . Launcher 7 | . . . . 7 Special . | . . . . . Kinetic 130 | . 15 28 87 . Thermal 43 | . 15 28 . . Explosive 7 | . . . . 7 Electromagnetic . | . . . . . Robot Hit Streak 7 | . 3 7 7 3 Robot Miss Streak 7 | . 2 7 2 1 Penetration Max 1 | . . . 1 . Secondary Targets 6 | . 1 5 . . Max Gunslinging Chain 1 | . 1 1 . . Shots Hit Robots 102 | . 16 28 55 3 Core Hits 79 | . 4 15 28 32 Critical Kills . | . . . . . Critical Parts Destroyed . | . . . . . Critical Strikes 9 | . 1 . 8 . Burn 1 | . 1 . . . Blast 8 | . . . 8 . Melee Attacks . | . . . . . Impact . | . . . . . Slashing . | . . . . . Piercing . | . . . . . Sneak Attacks . | . . . . . Combat Hostiles . | . . . . . Follow-up Attacks . | . . . . . Damage Inflicted 5000 | . 214 343 3347 1096 Guns 553 | . 210 343 . . Cannons 2926 | . . . 2926 . Explosions 1517 | . . . 421 1096 Melee . | . . . . . Ramming 4 | . 4 . . . Kinetic 3195 | . 109 160 2926 . Thermal 496 | . 101 183 212 . Explosive 1305 | . . . 209 1096 Electromagnetic . | . . . . . Impact . | . . . . . Slashing . | . . . . . Piercing . | . . . . . Highest Corruption 6 | . . . 1 6 Average Corruption 1 | . . . 1 3 Corruption Purged . | . . . . . Effects 2 | . . . . 2 Matter Fused 1 | . . . . 1 Data Loss (minor) 1 | . . . . 1 Overload Shots . | . . . . . Overflow Damage 420 | . . . 348 72 Projectiles 320 | . . . 320 . Explosions 100 | . . . 28 72 Melee . | . . . . . Knockbacks 19 | . . . 19 . Impact . | . . . . . Kinetic 16 | . . . 16 . Secondary 3 | . . . 3 . Self-Inflicted Damage 241 | . . . 198 43 Shots 5 | . . . 2 3 Rammed . | . . . . . Targets Rammed 1 | . 1 . . . Kicked 1 | . 1 . . . Crushed . | . . . . . Highest Temperature 380 | . 151 312 380 68 Average Temperature 60 | . 67 100 42 29 Received Heat Transfer 748 | . 36 183 369 160 Siege Activations . | . . . . . Robots Corrupted . | . . . . . Combat Hostiles . | . . . . . Parts Fried 3 | . . . 3 . Impact Corruptions 4 | . . . 4 . Robots Melted . | . . . . . Combat Hostiles . | . . . . . Parts Melted 2 | . . 2 . . Heat Transferred 989 | . 370 519 100 . Parts Sabotaged . | . . . . . Parts Stolen . | . . . . . Parts Stripped . | . . . . . Power Chain Reactions . | . . . . . Missiles Intercepted . | . . . . . Alert | -11 -10 -10 -9 -9 ------- Run | Scr Mat Min Mat Min Peak Influence 623 | . 85 133 623 134 Initial 99 | . . 33 42 99 Average 224 | . 40 96 371 108 Maximum Alert Level 2 | . . . 2 . Low Security (%) 64 | 100 100 100 26 100 Level 1 8 | . . . 17 . Level 2 27 | . . . 55 . Level 3 . | . . . . . Level 4 . | . . . . . Level 5 . | . . . . . High Security . | . . . . . Max Security . | . . . . . Squads Dispatched 6 | . 2 . 4 . Investigation 1 | . . . 1 . Extermination . | . . . . . Reinforcement 5 | . 2 . 3 . Assault . | . . . . . Garrison . | . . . . . Intercept . | . . . . . Construction Impeded . | . . . . . Haulers Reinforced . | . . . . . Active Scanning Responses . | . . . . . Cargo Convoy Interrupts . | . . . . . Stealth | -11 -10 -10 -9 -9 --------- Run | Scr Mat Min Mat Min Distress Signals . | . . . . . Communications Jammed . | . . . . . Distress Signals . | . . . . . Times Spotted 87 | . 7 10 47 23 Peak Tracking Total 18 | . 4 5 6 18 Tactical Retreats 9 | . 1 . 4 4 Traps | -11 -10 -10 -9 -9 ------- Run | Scr Mat Min Mat Min Traps Triggered 2 | . . . 2 . Indirectly . | . . . . . Trap Hack Attempts . | . . . . . Triggered . | . . . . . Disarmed . | . . . . . Reprogrammed . | . . . . . Reused . | . . . . . Traps Extracted . | . . . . . Installed . | . . . . . Triggered . | . . . . . Machines | -11 -10 -10 -9 -9 ---------- Run | Scr Mat Min Mat Min Machines Disabled 5 | . . . 4 1 Max in Single Turn 1 | . . . 1 1 Machines Sabotaged . | . . . . . Garrisons Compromised . | . . . . . Overloaded Fab Kills . | . . . . . Hacking | -11 -10 -10 -9 -9 --------- Run | Scr Mat Min Mat Min Machines Accessed 7 | . 1 1 5 . Terminals 5 | . 1 . 4 . Fabricators . | . . . . . Repair Stations . | . . . . . Recycling Units 1 | . . . 1 . Scanalyzers . | . . . . . Garrison Access . | . . . . . Total Hacks 23 | . 2 1 20 . Successful 12 | . . 1 11 . Failed 11 | . 2 . 9 . Catastrophic . | . . . . . Database Lockouts . | . . . . . Manual 14 | . . . 14 . Terminals 18 | . 2 . 16 . Fabricators . | . . . . . Repair Stations . | . . . . . Recycling Units 4 | . . . 4 . Scanalyzers . | . . . . . Garrison Access . | . . . . . Terminal Hacks 5 | . . 1 4 . Record 1 | . . . 1 . Open Door 1 | . . 1 . . Branch Access Points 1 | . . . 1 . Unreport Threat 2 | . . . 2 . Fabricator Hacks . | . . . . . Repair Station Hacks . | . . . . . Recycling Unit Hacks 4 | . . . 4 . Recycle Component 1 | . . . 1 . Process 1 | . . . 1 . Report Inventory 1 | . . . 1 . Retrieve Matter 1 | . . . 1 . Scanalyzer . | . . . . . Garrison Access Hacks . | . . . . . Unauthorized Hacks 3 | . . . 3 . Terminals 3 | . . . 3 . Botnet 3 | . . . 3 . Fabricators . | . . . . . Repair Stations . | . . . . . Recycling Units . | . . . . . Scanalyzers . | . . . . . Garrison Access . | . . . . . Data Cores Recovered . | . . . . . Used . | . . . . . Hacking Detections 5 | . 1 . 4 . Full Trace Events . | . . . . . Feedback Events . | . . . . . Feedback Blocked . | . . . . . Robot Schematics Acquired . | . . . . . Robots Built . | . . . . . Authchips . | . . . . . Time . | . . . . . Total Robot Build Rating . | . . . . . Part Schematics Acquired . | . . . . . Parts Built . | . . . . . Authchips . | . . . . . Time . | . . . . . Total Part Build Rating . | . . . . . Parts Repaired . | . . . . . Time . | . . . . . Parts Recycled 1 | . . . 1 . Recycled Matter 27 | . . . 27 . Retrieved Matter 27 | . . . 27 . Retrieved Components . | . . . . . Parts Scanalyzed . | . . . . . Part Schematics Acquired . | . . . . . Parts Damaged . | . . . . . Bothacking | -11 -10 -10 -9 -9 ------------ Run | Scr Mat Min Mat Min Used RIF Installer . | . . . . . Robots Hacked . | . . . . . Non-combat . | . . . . . Combat . | . . . . . Robot Hacks Applied . | . . . . . Relay Couplers Released . | . . . . . Fabnet Peak Effective % . | . . . . . Robots Rewired . | . . . . . Allies Hacked . | . . . . . Hacks Repelled . | . . . . . Allies | -11 -10 -10 -9 -9 -------- Run | Scr Mat Min Mat Min Total Allies . | . . . . . Largest Group . | . . . . . Highest-Rated Group . | . . . . . Highest-Rated Ally . | . . . . . Total Orders . | . . . . . Ally Attacks . | . . . . . Total Damage . | . . . . . Kills . | . . . . . Allies Corrupted . | . . . . . Allies Melted . | . . . . . Intel | -11 -10 -10 -9 -9 ------- Run | Scr Mat Min Mat Min Robot Analysis Total . | . . . . . Derelict Logs Recovered 3 | . . 2 . 1 Drone Launches . | . . . . . Drone Recoveries . | . . . . . Exploration | -11 -10 -10 -9 -9 ------------- Run | Scr Mat Min Mat Min Turns Passed 2024 | 3 210 711 985 115 Spaces Moved 1355 | 3 125 465 582 180 Core 110 | . . . 1 109 Treads 33 | . . 33 . . Legs 666 | 3 125 263 275 . Wheels 327 | . . 169 158 . Hover 219 | . . . 148 71 Flight . | . . . . . Fastest Speed 50 | 120 120 95 52 50 Average Speed 106 | 120 120 113 114 52 Slowest Speed 500 | 120 120 160 500 150 Overloaded Moves . | . . . . . Propulsion Burnouts . | . . . . . Robots Hopped . | . . . . . Cave-ins Triggered . | . . . . . Exploration Rate (%) 49 | 2 30 91 74 51 Regions Visited 4 Branch Regions 2 Pre-discovered Areas 1 | . . 1 . . Known Exits Taken 1 | . . . 1 . Unknown Exits Taken 3 | 1 1 1 . . Scrap Searched 2 | . . 1 . 1 Spaces Dug . | . . . . . Terrain Destroyed 177 | . . . 124 53 Melee . | . . . . . Projectile 37 | . . . 37 . AOE 140 | . . . 87 53 Terrain Rammed . | . . . . . Walls Destroyed . | . . . . . Machines Disabled . | . . . . . Actions | -11 -10 -10 -9 -9 --------- Run | Scr Mat Min Mat Min Total 1713 | 2 155 594 768 194 Wait 146 | . 8 79 58 1 Move 1351 | 2 124 464 581 180 Hop . | . . . . . Pick Up 18 | . 2 5 11 . Fast Attach 16 | . 1 2 13 . Attach 9 | . . 2 5 2 Detach . | . . . . . Swap 10 | . 2 5 1 2 Drop 27 | . 2 9 12 4 Fire 135 | . 15 28 87 5 Melee . | . . . . . Ram . | . . . . . Kick 1 | . 1 . . . Crush . | . . . . . Escape Stasis . | . . . . . Rewire . | . . . . . Trap . | . . . . . Miscellaneous . | . . . . . Route ------- -11/Scrapyard -10/Materials -10/Mines (discovered 2 exits: *Mat x2) -9/Materials (discovered 3 exits: *Mat x2 / *Min) -9/Mines History --------- Turn | Location | Event 1 | -11/Scrapyard | Discovered new exit (range 2) 4 | -11/Scrapyard | Entered Materials 176 | -10/Materials | Discovered new exit (range 8) 214 | -10/Materials | Entered Mines 300 | -10/Mines | Build established: Mutant 318 | -10/Mines | Discovered new exit (range 10) 331 | -10/Mines | Found a hidden stash of uninstalled traps 350 | -10/Mines | Met a Derelict bent on vengeance 425 | -10/Mines | Learned 4 Materials zone layouts 445 | -10/Mines | Learned location of Zion (-6) 649 | -10/Mines | Found a damaged Exp. Sensor Array with a note attached 652 | -10/Mines | Found Prototype Device 652 | -10/Mines | Identified Exp. Sensor Array 789 | -10/Mines | Met a Derelict who couldn't figure out how to use a Trap Extractor 906 | -10/Mines | Discovered new exit (range 15) 925 | -10/Mines | Entered Materials 925 | -9/Materials | Evolved 2 slots: Propulsion x1, Utility x1 926 | -9/Materials | Identified exit to Materials 1325 | -9/Materials | Destroyed 7 combat bots 1475 | -9/Materials | Lost 3 parts (1n1u1w) 1675 | -9/Materials | Discovered exit to Materials (range 8) 1897 | -9/Materials | Identified exit to Mines 1910 | -9/Materials | Entered Mines 1911 | -9/Mines | Assembled infested the area 1949 | -9/Mines | Destroyed 7 combat bots 1967 | -9/Mines | Core integrity fell below 50% 1997 | -9/Mines | Lost 4 parts (3n1w) 2000 | -9/Mines | Core integrity fell below 20% 2025 | -9/Mines | Destroyed by as-64560 with Assembled F-torch Last Messages --------------- 01956_ Airjet destroyed. 01961_ Destroyed Asb. Hover Unit. 01961_ Pressure Siphon disabled. 01961_ as-46512 destroyed. 01964_ Airjet destroyed. 01966_ Rocket Launcher destroyed. 01966_ System corrupted by crushing effect (+5). 01966_ Destroyed Asb. F-torch. 01966_ Destroyed Asb. Hover Unit. 01966_ as-81090 destroyed. 01966_ as-32958 destroyed. 01966_ as-82504 destroyed. 01966_ as-26281 destroyed. 01968_ Dropped Sml. Storage Unit. 01969_ Dropped Rocket Launcher. 01970_ as-86580 destroyed. 01971_ Dropped Imp. Ion Engine. 01975_ System corrupted: Matter fused (-4). 01987_ The unstable cave ceiling collapses. 01990_ System corrupted: Component data lost. Map ----- +----------------------------------------------------+ | ????????????????????????????????????????# ##????? | | ????????????????????????????????????????# #????? | | ????????????????????????????????????????# #????? | | ????????????????????????????????????????## ##???? | | ????????????????????????????????????????## ##??? | | ?????????????????????????????????????#### #??? | | ????????????????????????????????????## #??? | | ??????????????????????????????# ????# #??? | | ??????????????????????????????# ????# #??? | | ??????????????????????????????# ????## #??? | | ????????????????????????????### #????## #??? | | ???????????????????????????## ##????# ##?? | | ???????????????????????????# #????# #?? | | ???????????????????????????# ##??## #?? | | ??????????????????????????## #### #?? | | ?????????????????????????## ## ##?? | | ????????????????????????## ######??? | | ?????????????????????#### ##???????? | | ?????????????????????? ##????????? | | ??????????????????????????## #?????????? | | ???????????????????????????## ##????????? | | ???????????????????????????## ##???????? | | ????????????????????#####?## #???????? | | ???????????????????## ###a #??????? | | ???????????????????# a ### #??????? | | ???????????????????## @ ##?## ##??????? | | ????????????????????### ##???## ##???????? | | ??????????????????????#######?????#######????????? | | ?????????????????????????????????????????????????? | | ?????????????????????????????????????????????????? | | | | | | | | | | | | | | | | | | | | | | | | | | | | | | | | | | | | | | | | | +----------------------------------------------------+ Best States ------------- Heat Dissipation 28 Energy Generation 18 Energy Capacity 275 Matter Stores 300 Matter Capacity 300 Sight Range 16 Robot Scan Range 20 Terrain Scan Density 10 Propulsion Shielding 66 Evasion (%) 55 Targeting Accuracy 5 Armor Integrity Analysis 20 Recoil Reduction 1 Defensive Hacking 10 Item Schematics ----------------- None Robot Schematics ------------------ None Fabricated ------------ Nothing Alien Tech Used ----------------- None Achievements -------------- None Challenges ------------ None Game ------ Seed DeuteriumWardroneAutocannon Manual? 0 Play Time 00:26:21 Cumulative 60.0 hours Start 2021.11.23 @ 21:54:56 End 2021.11.23 @ 22:18:23 Sessions 1 Manual Loads 0 Difficulty Rogue Special Mode None Game No. 33 Rogue 31 Adventurer 2 Explorer 0 Win Type - Total 2 Types 2/0/0/0/0/0/0/0/0 Lore% 45 Gallery% 56 Achievement% 47 Wizard Run 0 Options --------- ASCII 0 Keyboard 0 Movement Numpad Keybinds 0 Fullscreen 2 Font 24/Smallcaps Map View 76x50 Tactical HUD 1 Map Filters NONE Filters NONE Steam 1 RUN: 809fa3bd-83a5-4ac3-bd25-5c352baf522b